bitfinex-derivatives/quotes_ETHF0:USTF0_20241231
["timestamp","ask_amount","ask_price","bid_price","bid_amount"]
[1735677535117,0.29925,3347.3,3347.2,0.29924]
[1735677535918,0.29923,3347.4,3347.3,0.29923]
[1735677538314,0.29922,3347.5,3347.4,0.29922]
[1735677540328,3.2078,3347.6,3347.1,0.74813]
[1735677540632,3.50701,3347.6,3347.5,0.29922]
[1735677541824,3.2078,3347.6,3346.9,0.8783]
[1735677542026,0.29925,3347.3,3347.2,0.29923]
[1735677542227,3.2078,3347.6,3347.0,0.29925]
[1735677542228,0.29926,3347.1,3347.0,0.29925]
[1735677543627,0.4582,3347.2,3346.9,0.8783]
[1735677543827,0.29925,3347.2,3347.1,0.29925]
[1735677546028,0.4582,3347.5,3346.9,0.8783]
[1735677546230,0.29924,3347.4,3347.3,0.29923]
[1735677552434,0.29922,3347.5,3347.4,0.29922]
[1735677552630,1.20228,3347.9,3347.2,3.95591]
[1735677552834,3.2078,3348.0,3347.9,0.29918]
[1735677553431,3.50121805,3348.2,3347.8,4.0902]
[1735677553636,3.50121805,3348.2,3348.1,0.29916]
[1735677553937,0.29915,3348.3,3348.2,0.29916]
[1735677554735,3.50121805,3348.4,3348.3,0.29915]
[1735677555039,6.70901805,3348.6,3348.5,0.29913]
[1735677555635,3.50121805,3348.6,3348.5,0.29913]
[1735677556531,0.29909,3349.0,3348.5,0.29913]
[1735677556736,0.29909,3349.0,3348.9,0.29909]
[1735677556936,3.94481805,3349.2,3348.7,1.226]
[1735677557139,4.24389805,3349.2,3349.1,0.29908]
[1735677557637,3.94481805,3349.2,3349.1,0.29908]
[1735677557842,3.50121805,3349.2,3349.1,0.29908]
[1735677558247,0.29906,3349.4,3349.3,0.29905]
[1735677558435,3.6655,3349.5,3348.8,1.80419355]
[1735677558436,3.2078,3349.5,3348.8,1.80419355]
[1735677558737,3.50121805,3349.8,3349.7,0.29902]
[1735677559330,7.86469815,3350.0,3349.5,0.8957]
[1735677559331,3.2078,3350.0,3349.5,0.8957]
[1735677559534,3.5068,3350.0,3349.9,0.299]
[1735677559841,0.29901,3349.9,3349.8,0.29901]
[1735677560243,3.5068,3350.0,3349.6,1.213]
[1735677560445,3.2078,3350.0,3349.9,0.299]
[1735677560743,3.5068,3350.0,3349.9,0.299]
[1735677560935,3.2078,3350.0,3349.5,0.8957]
[1735677561136,0.29901,3349.9,3349.8,0.29901]
[1735677562044,0.29903,3349.6,3349.5,1.51204]
[1735677562438,0.29903,3349.7,3349.6,0.29903]
[1735677562638,0.4446,3350.0,3349.7,0.29901]
[1735677563042,0.29901,3349.9,3349.6,0.29903]
[1735677563251,0.29899,3350.1,3349.5,1.213]
[1735677563446,0.299,3350.0,3349.9,0.299]
[1735677563644,0.4286,3350.2,3349.5,1.213]
[1735677563848,0.4286,3350.2,3350.1,0.29899]
[1735677564048,0.72758,3350.2,3350.1,0.29899]
[1735677564444,0.4286,3350.2,3350.1,0.29899]
[1735677564650,3.6708,3350.5,3349.8,0.425]
[1735677564944,0.29897,3350.3,3350.2,0.29898]
[1735677565139,3.6708,3350.5,3349.8,0.425]
[1735677565347,0.299,3350.0,3349.9,0.299]
[1735677565542,0.29899,3350.1,3350.0,0.29899]
[1735677565957,0.29898,3350.2,3350.1,0.29898]
[1735677566151,3.6708,3350.5,3349.8,0.425]
[1735677566450,0.29899,3350.1,3350.0,0.29899]
[1735677566852,0.299,3350.0,3349.9,0.299]
[1735677569049,0.29899,3350.1,3350.0,0.29899]
[1735677569250,0.29898,3350.2,3350.1,0.29898]
[1735677569848,3.96976,3350.5,3350.4,0.29896]
[1735677570152,3.2078,3350.5,3350.4,0.29896]
[1735677570559,2.31947268,3350.8,3350.7,0.29893]
[1735677571752,0.29891,3351.0,3350.9,0.29891]
[1735677571949,0.29892,3350.9,3350.8,0.29892]
[1735677572147,0.29894,3350.6,3350.5,3.2078]
[1735677572753,0.29894,3350.6,3350.5,3.50675]
[1735677576657,0.29894,3350.6,3350.5,3.2078]
[1735677576850,0.29894,3350.6,3350.5,3.50675]
[1735677577463,0.29894,3350.6,3350.5,3.2078]
[1735677577956,0.29894,3350.6,3350.5,3.50675]
[1735677578161,0.29893,3350.8,3350.7,0.29892]
[1735677578362,3.50672,3350.9,3350.8,0.29892]
[1735677578767,3.2078,3350.9,3350.8,0.29892]
[1735677579358,3.50671,3350.9,3350.8,0.29892]
[1735677579759,0.29894,3350.8,3350.7,0.29893]
[1735677579960,0.72114,3350.8,3350.7,0.29893]
[1735677581865,0.29894,3350.6,3350.5,3.2078]
[1735677582068,0.29894,3350.6,3350.5,3.50675]
[1735677582658,0.74734,3350.7,3350.2,0.4406]
[1735677582865,0.29901,3349.9,3349.8,0.299]
[1735677583970,0.4609,3350.1,3349.6,0.4355]
[1735677584166,0.29903,3349.7,3349.6,0.29903]
[1735677584373,3.2078,3349.9,3349.5,0.4211]
[1735677584563,0.29905,3349.5,3349.2,0.4355]
[1735677584768,0.29906,3349.4,3349.3,0.29905]
[1735677585164,0.29906,3349.3,3349.2,0.73456]
[1735677585465,1.80419355,3349.7,3349.2,0.4355]
[1735677585768,0.29905,3349.4,3349.3,0.29905]
[1735677586661,3.2078,3349.5,3349.2,0.4355]
[1735677586967,1.80419355,3349.4,3347.9,1.80419355]
[1735677587171,0.29915,3348.3,3348.2,0.29915]
[1735677587469,5.01199355,3348.7,3348.4,0.29913]
[1735677587470,0.29913,3348.5,3348.4,0.29913]
[1735677588763,0.29914,3348.4,3348.3,0.29914]
[1735677588967,0.29914,3348.4,3347.9,3.95576]
[1735677588968,3.2078,3348.7,3347.9,0.74796]
[1735677589166,3.2078,3348.7,3348.4,0.29914]
[1735677589371,0.29914,3348.5,3348.4,0.29914]
[1735677589565,3.2078,3348.7,3347.9,3.95576]
[1735677589764,0.29912,3348.6,3348.5,0.29913]
[1735677589960,0.29914,3348.5,3348.4,0.29913]
[1735677590373,0.29914,3348.5,3347.9,3.95576]
[1735677590374,3.95559,3348.7,3347.9,3.2078]
[1735677590572,0.29914,3348.4,3348.3,0.29914]
[1735677591873,0.29913,3348.5,3348.4,0.29913]
[1735677592070,0.29915,3348.3,3348.2,0.29915]
[1735677592372,0.29916,3348.2,3348.1,0.29916]
[1735677592770,3.50695,3348.3,3348.2,0.29916]
[1735677592978,0.29918,3347.9,3347.8,0.8697]
[1735677593366,0.29917,3348.0,3347.5,3.50701]
[1735677593562,0.2992,3347.7,3347.6,0.29921]
[1735677593769,0.2992,3347.8,3347.7,0.2992]
[1735677594176,3.2078,3348.3,3347.5,3.2078]
[1735677594374,0.29918,3348.0,3347.8,0.29919]
[1735677594575,3.2078,3348.3,3347.5,3.2078]
[1735677594776,0.2992,3347.8,3347.6,0.29921]
[1735677594976,0.2992,3347.8,3347.7,0.2992]
[1735677595275,0.29919,3347.9,3347.8,0.29919]
[1735677596075,0.29918,3348.0,3347.9,0.29918]
[1735677596969,3.2078,3348.3,3347.5,3.2078]
[1735677597477,0.29917,3348.1,3348.0,0.29917]
[1735677597771,3.2078,3348.3,3347.7,0.4334]
[1735677597969,3.2078,3348.3,3348.2,0.29916]
[1735677599669,0.29913,3348.6,3348.5,0.29912]
[1735677600475,3.2078,3348.8,3347.9,5.91629355]
[1735677600666,0.29913,3348.6,3348.5,0.29912]
[1735677600873,0.29914,3348.5,3348.4,0.29913]
[1735677605779,3.2078,3348.8,3347.9,5.91629355]
[1735677605982,3.2078,3348.3,3347.9,0.9043]
[1735677606168,0.29919,3347.8,3347.7,0.4334]
[1735677606575,1.80419355,3348.1,3347.5,0.8639]
[1735677606778,0.29921,3347.6,3347.5,0.8639]
[1735677606979,0.29921,3347.6,3347.5,1.16312]
[1735677607778,0.74796,3347.9,3347.5,1.16312]
[1735677607779,2.55211355,3348.1,3347.5,0.8639]
[1735677607977,0.29921,3347.7,3347.6,0.2992]
[1735677610079,0.4443,3348.2,3347.5,0.8639]
[1735677610279,0.29918,3348.0,3347.9,0.29917]
[1735677610582,0.2992,3347.9,3347.8,0.29919]
[1735677610881,0.29921,3347.6,3347.5,0.8639]
[1735677611282,0.29921,3347.6,3347.5,1.16312]
[1735677612177,0.4608,3348.0,3347.5,0.8639]
[1735677612374,0.2992,3347.7,3347.6,0.2992]
[1735677613180,2.55211355,3348.1,3347.5,0.8639]
[1735677613378,0.29921,3347.6,3347.5,1.16311]
[1735677614282,3.2078,3347.8,3347.2,0.4628]
[1735677614483,0.29923,3347.4,3347.3,0.29922]
[1735677615075,5.01199355,3347.8,3347.2,0.8866]
[1735677615277,0.29925,3347.1,3347.0,3.2078]
[1735677615677,0.29927,3346.9,3346.8,0.4378]
[1735677615878,0.29927,3346.9,3346.8,0.73708]
[1735677616087,0.29927,3346.9,3346.8,0.4378]
[1735677616275,3.2078,3347.0,3346.7,0.4485]
[1735677616480,1.80419355,3346.9,3346.6,3.2078]
[1735677616681,0.29932,3346.4,3346.3,0.29932]
[1735677617081,1.80419355,3346.9,3346.4,0.29931]
[1735677617082,0.29931,3346.5,3346.4,0.29931]
[1735677617688,0.29928,3346.9,3346.8,0.29927]
[1735677618081,0.29929,3346.8,3346.7,0.29929]
[1735677618485,3.2078,3347.0,3346.6,0.4453]
[1735677618683,0.29928,3346.9,3346.8,0.29928]
[1735677619491,0.29929,3346.8,3346.7,0.29928]
[1735677620178,0.29929,3346.8,3346.7,0.76268]
[1735677620385,0.29927,3346.9,3346.8,0.29927]
[1735677620682,0.8825,3347.3,3346.7,0.4634]
[1735677620882,0.29925,3347.2,3347.1,0.29925]
[1735677621083,0.29926,3347.1,3347.0,0.29926]
[1735677621278,0.4276,3347.3,3346.7,0.4634]
[1735677621484,0.29927,3347.0,3346.9,0.29927]
[1735677622387,0.29928,3346.9,3346.8,0.29927]
[1735677622685,0.4276,3347.3,3347.0,0.29926]
[1735677622885,0.29926,3347.1,3347.0,0.29926]
[1735677623190,0.4276,3347.3,3346.7,0.4634]
[1735677623589,0.29927,3347.0,3346.7,0.4634]
[1735677623791,0.29927,3347.0,3346.9,0.29927]
[1735677624787,0.4276,3347.3,3346.7,0.4634]
[1735677624986,0.29927,3347.1,3347.0,0.29926]
[1735677625194,0.29927,3347.0,3346.9,0.29926]
[1735677625381,0.29926,3347.1,3347.0,0.29925]
[1735677625588,0.29925,3347.2,3347.1,0.29925]
[1735677628788,3.2078,3347.4,3346.7,0.4634]
[1735677629094,0.29922,3347.6,3347.5,0.29921]
[1735677629289,4.0904,3347.8,3347.4,0.29923]
[1735677629290,0.29923,3347.5,3347.4,0.29923]
[1735677629495,2.31947268,3347.9,3347.3,5.01199355]
[1735677629694,2.31947268,3347.9,3347.8,0.29919]
[1735677629894,3.80039805,3348.0,3347.9,0.29918]
[1735677630395,0.29919,3347.9,3347.8,0.29918]
[1735677630588,3.50121805,3348.0,3347.4,0.74806]
[1735677630792,0.29918,3348.0,3347.9,0.29918]
[1735677631392,3.6327,3348.2,3347.6,1.80419355]
[1735677631594,3.50696,3348.2,3348.1,0.29916]
[1735677632701,3.50696,3348.2,3348.0,0.29917]
[1735677632702,0.29917,3348.1,3348.0,0.29917]
[1735677633197,3.2078,3348.2,3347.9,0.8782]
[1735677633392,0.29917,3348.0,3347.9,0.8782]
[1735677633594,0.29923,3347.5,3347.3,3.2078]
[1735677633797,0.29923,3347.5,3347.4,0.29922]
[1735677634087,0.74799,3347.8,3347.1,1.2906]
[1735677634088,3.2078,3347.6,3347.1,1.2906]
[1735677634294,0.29925,3347.2,3347.1,6.28936538]
[1735677635007,0.29924,3347.4,3347.3,0.29922]
[1735677635704,0.29922,3347.5,3347.4,0.29922]
[1735677636203,0.29925,3347.3,3347.2,0.29924]
[1735677636703,0.29923,3347.5,3347.4,0.29922]
[1735677638098,3.2078,3347.6,3347.5,0.29922]
[1735677638403,1.95088,3348.3,3347.1,2.03873]
[1735677638404,3.2078,3348.1,3347.4,0.74806]
[1735677638609,3.2078,3348.1,3347.6,1.80419355]
[1735677638803,3.2078,3348.1,3348.0,0.29917]
[1735677639003,3.50693,3348.5,3348.4,0.29913]
[1735677639212,0.29916,3348.3,3348.2,0.29914]
[1735677640805,0.29914,3348.4,3348.3,0.29914]
[1735677643011,0.29916,3348.3,3348.2,0.29915]
[1735677643706,3.2078,3348.5,3347.8,0.74799]
[1735677643913,0.29914,3348.4,3348.3,0.29914]
[1735677644113,0.29916,3348.3,3348.2,0.29915]
[1735677647306,0.29914,3348.4,3348.3,0.29914]
[1735677647511,3.50694,3348.5,3348.4,0.29914]
[1735677647814,3.2078,3348.5,3348.4,0.29914]
[1735677648207,3.50693,3348.5,3348.4,0.29914]
[1735677648907,3.2078,3348.5,3348.4,0.29914]
[1735677649618,0.29912,3348.7,3348.1,3.9557]
[1735677649809,0.29912,3348.7,3348.6,0.29912]
[1735677650509,2.33726478,3348.8,3348.7,0.29911]
[1735677652017,0.29908,3349.1,3349.0,0.29908]
[1735677653918,0.29907,3349.3,3349.2,0.29905]
[1735677655118,5.54506478,3349.5,3348.6,0.7478]
[1735677655417,0.29909,3349.0,3348.9,0.29909]
[1735677655619,0.29909,3349.0,3348.5,5.16861]
[1735677655620,1.80419355,3349.4,3348.5,4.4208]
[1735677655916,0.29907,3349.3,3349.2,0.29906]
[1735677656719,0.29908,3349.1,3349.0,0.29907]
[1735677657417,0.29905,3349.4,3349.3,0.29906]
[1735677657814,3.2078,3349.5,3349.3,0.29906]
[1735677658017,0.29903,3349.6,3349.5,0.29903]
[1735677658222,0.29903,3349.7,3349.6,0.29902]
[1735677658520,2.63629478,3349.8,3349.7,0.29902]
[1735677660324,2.33726478,3349.8,3349.7,0.29902]
[1735677660621,0.29901,3349.8,3349.7,0.29902]
[1735677660822,3.9511,3350.0,3349.9,0.299]
[1735677661123,3.5068,3350.0,3349.9,0.299]
[1735677662020,3.2078,3350.0,3349.9,0.299]
[1735677662220,3.5068,3350.0,3349.9,0.299]
[1735677662418,3.5068,3350.0,3349.8,0.29901]
[1735677662419,0.29901,3349.9,3349.8,0.29901]
[1735677662620,3.2078,3350.0,3349.9,0.299]
[1735677663925,0.299,3350.0,3349.9,0.299]
[1735677664222,3.2078,3350.4,3349.7,1.3257]
[1735677664524,3.2078,3350.4,3350.3,0.29897]
[1735677664725,2.63619478,3350.8,3350.7,0.29893]
[1735677664924,2.33726478,3350.8,3350.7,0.29893]
[1735677665126,3.50589717,3350.8,3350.7,0.29893]
[1735677666523,3.2078,3351.0,3350.9,0.29891]
[1735677667027,0.29888,3351.3,3351.2,0.29889]
[1735677667826,0.4309,3351.4,3351.3,0.29888]
[1735677668029,3.2078,3351.5,3351.4,0.29887]
[1735677668326,2.79212523,3351.8,3351.4,0.29887]
[1735677668327,2.32802523,3351.8,3351.4,0.29887]
[1735677668625,3.2078,3351.9,3351.5,3.01498862]
[1735677668821,3.50659,3352.3,3352.2,0.2988]
[1735677669021,0.29881,3352.1,3352.0,0.29881]
[1735677669221,3.2078,3352.3,3352.2,0.2988]
[1735677669222,3.50659,3352.3,3352.2,0.2988]
[1735677669423,0.2988,3352.2,3352.0,0.29881]
[1735677669726,0.2988,3352.2,3351.8,0.4547]
[1735677670023,0.2988,3352.2,3352.1,0.29881]
[1735677670332,0.29881,3352.1,3352.0,0.29881]
[1735677670631,0.2988,3352.2,3352.1,0.2988]
[1735677670925,5.01199355,3352.3,3351.5,4.4208]
[1735677671430,0.29887,3351.8,3351.6,0.29888]
[1735677671623,3.2078,3351.7,3351.6,0.29888]
[1735677673320,3.2078,3352.3,3351.5,3.76440355]
[1735677673522,3.2078,3351.9,3351.5,3.76440355]
[1735677673719,3.2078,3351.9,3351.8,0.29886]
[1735677674129,3.2078,3351.9,3351.5,1.213]
[1735677674323,3.2078,3351.9,3351.6,0.29887]
[1735677674526,0.29887,3351.8,3351.7,0.29887]
[1735677674733,3.50666,3351.9,3351.8,0.29886]
[1735677675033,0.29887,3351.7,3351.6,0.29888]
[1735677675329,1.80419355,3351.8,3351.2,0.8724]
[1735677675533,0.29889,3351.6,3351.4,0.29889]
[1735677675725,0.29887,3351.7,3351.4,0.29889]
[1735677675931,0.29889,3351.5,3351.4,0.29889]
[1735677676128,2.26039355,3351.8,3351.3,0.2989]
[1735677676129,0.29891,3351.4,3351.3,0.2989]
[1735677676435,0.29889,3351.6,3351.5,0.29888]
[1735677677438,0.2989,3351.5,3351.4,0.2989]
[1735677679135,0.29888,3351.7,3351.6,0.29888]
[1735677679527,3.00757355,3351.8,3351.1,3.2078]
[1735677679731,0.29895,3350.9,3350.8,0.29894]
[1735677679929,3.2078,3351.3,3350.7,0.74741]
[1735677680132,3.2078,3351.3,3351.2,0.29892]
[1735677680433,3.50671,3351.3,3351.2,0.29892]
[1735677680630,3.2078,3351.3,3351.2,0.29892]
[1735677680832,3.50671,3351.3,3351.2,0.29892]
[1735677681230,3.2078,3351.3,3351.2,0.29892]
[1735677683031,3.2078,3351.3,3350.8,0.29894]
[1735677683032,0.29895,3350.9,3350.8,0.29894]
[1735677683225,0.29895,3350.9,3350.6,0.8868]
[1735677683226,3.2078,3350.9,3350.6,0.8868]
[1735677683434,0.299,3350.4,3350.3,0.29899]
[1735677683736,0.299,3350.4,3349.8,2.78985471]
[1735677683737,0.29902,3350.1,3350.0,0.29902]
[1735677684638,0.29902,3350.1,3349.8,0.4357]
[1735677684639,0.29905,3349.8,3349.6,0.29906]
[1735677684940,0.29903,3350.1,3350.0,0.29902]
[1735677688637,0.8775,3350.4,3349.4,5.1775]
[1735677688826,0.8775,3350.4,3349.8,0.29904]
[1735677688827,0.29904,3349.9,3349.8,0.29904]
[1735677689640,0.29903,3350.0,3349.9,0.29902]
[1735677690140,0.29904,3350.0,3349.9,0.29903]
[1735677691038,0.29904,3349.9,3349.8,0.29904]
[1735677691936,0.29903,3350.0,3349.9,0.29902]
[1735677692844,0.29902,3350.1,3350.0,0.29901]
[1735677694036,0.29904,3349.9,3349.8,0.29903]
[1735677694233,0.74752,3350.3,3349.4,3.9555]
[1735677694431,0.29903,3350.1,3350.0,0.29902]
[1735677694841,0.8775,3350.4,3349.4,3.2078]
[1735677695140,0.29904,3350.0,3349.9,0.29903]
[1735677696140,0.29902,3350.1,3350.0,0.29901]
[1735677697138,0.29901,3350.2,3350.1,0.299]
[1735677699548,0.8775,3350.4,3349.8,0.4427]
[1735677699744,0.29903,3350.0,3349.9,0.29902]
[1735677700648,0.29903,3349.9,3349.8,0.74174]
[1735677701243,0.29903,3349.9,3349.5,1.19058]
[1735677701244,0.29906,3349.6,3349.3,0.29908]
[1735677701548,0.29906,3349.6,3348.8,0.74783]
[1735677701549,0.29909,3349.3,3349.2,0.2991]
[1735677701952,0.29908,3349.4,3349.3,0.29907]
[1735677702248,5.01199355,3349.6,3349.1,0.8642]
[1735677702443,3.2078,3349.2,3349.0,0.29911]
[1735677702642,0.29911,3349.1,3349.0,0.29911]
[1735677703051,0.29912,3348.9,3348.8,0.76193]
[1735677703249,0.29912,3348.9,3348.8,0.29913]
[1735677703545,0.29913,3348.8,3348.7,0.4225]
[1735677703737,3.50693,3348.8,3348.7,0.72164]
[1735677704141,3.50693,3348.8,3348.7,0.4225]
[1735677704341,3.50693,3348.8,3348.7,0.72164]
[1735677705549,0.29913,3348.9,3348.8,0.29912]
[1735677705746,3.2078,3349.2,3348.7,1.6445]
[1735677705956,2.62505871,3349.5,3349.4,0.29908]
[1735677707153,0.29907,3349.5,3349.4,0.29908]
[1735677707549,3.2078,3349.6,3349.1,0.4211]
[1735677707754,1.80419355,3349.4,3348.7,0.4225]
[1735677708054,0.29913,3348.9,3348.8,0.29912]
[1735677708250,0.29912,3349.0,3348.9,0.29911]
[1735677709252,0.29913,3348.9,3348.8,0.29913]
[1735677709449,0.29913,3348.8,3348.7,0.72163]
[1735677710459,0.4315,3349.0,3348.7,0.4225]
[1735677710757,0.73062,3349.0,3348.9,0.29912]
[1735677711749,3.2078,3349.1,3349.0,0.29911]
[1735677712152,3.2078,3349.1,3349.0,0.72211]
[1735677712760,0.4315,3349.7,3349.0,0.423]
[1735677712959,3.50684,3349.8,3349.2,2.55193355]
[1735677713376,3.50684,3349.8,3349.7,0.29905]
[1735677713566,3.2078,3349.8,3349.7,0.29905]
[1735677713967,3.2078,3350.2,3350.1,0.29902]
[1735677714173,2.32488208,3350.5,3350.4,0.29899]
[1735677714469,0.29898,3350.5,3350.4,0.29899]
[1735677714864,0.29898,3350.6,3350.5,0.29897]
[1735677715275,4.0911,3350.7,3350.1,0.8614]
[1735677715467,0.29899,3350.5,3350.4,0.29899]
[1735677715669,0.29901,3350.3,3350.2,0.29901]
[1735677716577,5.89529355,3350.7,3349.6,1.22]
[1735677716775,0.29903,3350.1,3350.0,0.29902]
[1735677717872,0.29902,3350.2,3350.1,0.29901]
[1735677718371,3.50682,3350.2,3350.1,0.29901]
[1735677719462,3.2078,3350.2,3350.1,0.29901]
[1735677719668,3.50681,3350.2,3350.1,0.29901]
[1735677720766,3.2078,3350.2,3350.1,0.29901]
[1735677722374,3.50681,3350.2,3350.1,0.29901]
[1735677723278,3.2078,3350.2,3350.1,0.29901]
[1735677725375,3.50677,3350.6,3350.5,0.29897]
[1735677725680,3.2078,3350.6,3350.5,0.29897]
[1735677725874,2.32488208,3350.7,3350.6,0.29897]
[1735677726981,0.29896,3350.7,3350.6,0.29897]
[1735677727177,3.2078,3350.7,3350.2,0.8795]
[1735677727376,0.299,3350.3,3350.2,1.1785]
[1735677727585,0.29898,3350.5,3350.4,0.29898]
[1735677727768,0.4382,3350.6,3349.9,0.4243]
[1735677727972,3.2078,3350.3,3350.2,0.29901]
[1735677728177,3.2078,3350.4,3350.3,0.299]
[1735677728382,3.2078,3350.4,3349.9,0.4243]
[1735677728682,4.0996,3350.4,3349.9,0.4243]
[1735677729180,0.29902,3350.0,3349.9,0.72332]
[1735677730679,0.29902,3350.1,3350.0,0.29901]
[1735677730883,3.6614,3350.4,3349.9,0.4243]
[1735677731072,0.29901,3350.3,3350.2,0.299]
[1735677731273,2.32488208,3350.5,3350.0,1.80419355]
[1735677731474,2.32488208,3350.3,3350.2,2.10320355]
[1735677732079,3.48732312,3350.5,3350.2,2.10320355]
[1735677732080,2.8522052,3350.5,3350.4,0.29899]
[1735677732877,3.2078,3350.8,3350.7,0.29896]
[1735677734382,3.2078,3351.3,3350.6,0.74743]
[1735677734578,0.29893,3351.1,3351.0,0.29892]
[1735677734978,3.2078,3351.3,3350.6,2.55162355]
[1735677735183,3.2078,3351.3,3351.1,0.29892]
[1735677735184,0.29892,3351.2,3351.1,0.29892]
[1735677735685,0.29895,3350.9,3350.8,0.29894]
[1735677736181,0.29898,3350.5,3350.4,0.29898]
[1735677736383,0.299,3350.4,3350.3,0.29899]
[1735677736585,0.299,3350.3,3350.2,0.299]
[1735677736881,0.29901,3350.2,3350.1,4.9684062]
[1735677737685,0.29901,3350.2,3350.1,0.29901]
[1735677737880,0.29903,3350.1,3350.0,0.29902]
[1735677738084,0.29903,3350.1,3349.6,0.4389]
[1735677738085,3.2078,3350.1,3349.6,0.4389]
[1735677738274,3.2078,3350.1,3349.6,0.8641]
[1735677738676,3.2078,3350.1,3349.3,4.6693962]
[1735677738884,0.29908,3349.4,3349.3,4.6693962]
[1735677739087,5.01199355,3349.7,3349.1,7.8771962]
[1735677739088,0.2991,3349.2,3349.1,7.8771962]
[1735677739588,0.2991,3349.2,3349.1,4.6693962]
[1735677740075,3.6494,3349.3,3348.8,10.0631224]
[1735677740076,3.6494,3349.3,3348.9,0.29912]
[1735677740580,0.29911,3349.1,3349.0,0.29911]
[1735677740884,0.29912,3349.0,3348.8,0.72432]
[1735677741080,0.29912,3349.0,3348.9,0.29912]
[1735677741275,3.6494,3349.3,3348.4,0.4389]
[1735677741276,1.80419355,3349.1,3348.4,0.4389]
[1735677741584,0.29914,3348.8,3348.6,0.29915]
[1735677741781,3.50693,3348.9,3348.7,0.29914]
[1735677742082,3.50693,3348.9,3348.4,0.4389]
[1735677742083,1.80419355,3349.1,3348.4,0.4389]
[1735677742484,0.29914,3348.7,3348.6,0.29915]
[1735677742786,3.2078,3348.9,3348.5,0.29916]
[1735677743281,0.29918,3348.3,3348.2,0.29918]
[1735677743590,0.29919,3348.2,3348.1,3.2078]
[1735677743888,3.2078,3348.5,3348.1,3.2078]
[1735677743889,0.29917,3348.4,3348.1,3.2078]
[1735677744090,0.29918,3348.3,3348.1,3.50699]
[1735677744785,0.29918,3348.3,3348.1,3.2078]
[1735677744987,0.29918,3348.3,3348.2,0.29919]
[1735677745182,0.29918,3348.3,3348.1,3.2078]
[1735677745388,0.29918,3348.3,3348.1,3.50699]
[1735677745589,0.4653,3348.4,3347.9,0.4509]
[1735677745781,0.2992,3348.1,3347.9,0.29921]
[1735677746089,0.29919,3348.2,3348.0,0.2992]
[1735677746296,3.2078,3348.1,3348.0,0.2992]
[1735677747685,3.2078,3348.1,3347.7,0.4377]
[1735677747994,3.2078,3348.1,3348.0,0.2992]
[1735677748187,0.29922,3347.8,3347.5,0.29925]
[1735677748383,3.2078,3348.1,3347.7,0.29923]
[1735677748384,0.29922,3347.9,3347.7,0.29923]
[1735677748786,0.2992,3348.0,3347.7,0.29923]
[1735677749086,0.29922,3347.9,3347.7,0.29923]
[1735677749290,3.2078,3348.1,3347.3,0.4509]
[1735677749592,0.29922,3347.8,3347.6,0.29923]
[1735677750089,0.29922,3347.8,3347.3,0.4509]
[1735677750286,0.29922,3347.8,3347.4,0.29926]
[1735677750491,0.29922,3347.8,3347.3,0.4509]
[1735677750692,3.6392,3348.1,3347.3,0.4509]
[1735677750884,0.4439,3347.7,3347.3,0.4509]
[1735677751081,0.29926,3347.4,3347.3,0.29926]
[1735677751281,2.26709355,3347.6,3347.0,3.2078]
[1735677751687,0.29926,3347.4,3347.2,0.29927]
[1735677751894,3.2078,3347.3,3347.2,0.29927]
[1735677752188,0.29928,3347.2,3347.1,0.29928]
[1735677752379,3.2078,3347.3,3347.1,0.29928]
[1735677752580,3.50707,3347.3,3346.6,1.63322]
[1735677752788,0.29929,3347.1,3346.9,0.2993]
[1735677753293,0.2993,3346.9,3346.8,0.29931]
[1735677754492,0.29932,3346.7,3346.6,0.29932]
[1735677754895,0.29931,3346.8,3346.7,0.29932]
[1735677755187,3.2078,3346.9,3346.1,2.70909355]
[1735677755387,0.29933,3346.6,3346.5,0.29934]
[1735677755593,0.4263,3346.8,3346.1,2.70909355]
[1735677755801,0.29933,3346.6,3346.5,0.29933]
[1735677755986,0.29933,3346.6,3346.1,2.70909355]
[1735677756188,0.29933,3346.6,3346.4,0.29934]
[1735677756394,3.2078,3346.5,3346.4,0.29934]
[1735677758192,0.4263,3346.8,3346.7,0.29932]
[1735677758492,3.2078,3346.9,3346.8,0.29931]
[1735677758898,3.2078,3347.3,3346.7,1.80419355]
[1735677759099,3.2078,3347.3,3347.2,0.29927]
[1735677760394,3.2078,3347.3,3346.9,1.21434]
[1735677760395,0.4342,3347.5,3346.9,0.4661]
[1735677760597,3.2078,3347.7,3346.9,0.4661]
[1735677760598,3.2078,3347.7,3347.6,0.29924]
[1735677760996,3.50703,3347.7,3347.6,0.29924]
[1735677761193,3.2078,3347.7,3346.9,1.21434]
[1735677761387,3.2078,3347.7,3347.4,0.29925]
[1735677761593,3.50703,3347.7,3347.6,0.29924]
[1735677761889,3.50703,3347.7,3347.0,0.74824]
[1735677761890,0.29924,3347.6,3347.5,0.29924]
[1735677762092,0.29922,3347.6,3347.5,0.29922]
[1735677762498,3.2078,3347.7,3346.9,0.4661]
[1735677762795,3.50701,3347.7,3347.6,0.29921]
[1735677763393,3.2078,3347.7,3347.6,0.29921]
[1735677763598,3.94117,3348.1,3348.0,0.29917]
[1735677763899,3.642,3348.1,3348.0,0.29917]
[1735677764095,3.94117,3348.1,3348.0,0.29917]
[1735677764296,0.29919,3347.9,3347.6,0.29921]
[1735677764600,3.642,3348.1,3348.0,0.29917]
[1735677765789,3.2078,3349.1,3348.0,5.01199355]
[1735677765988,0.4491,3349.0,3348.9,0.29909]